bitfinex-derivatives/quotes_ETHF0:USTF0_20210402
["timestamp","ask_amount","ask_price","bid_price","bid_amount"]
[1617407231540,72.2416,2132.0,2130.2,2.90695]
[1617407233542,2.90695,2130.3,2130.2,2.90695]
[1617407236845,4.21835,2130.3,2130.2,2.90695]
[1617407237044,4.21835,2130.3,2129.3,4.79058166]
[1617407237646,1.3114,2130.3,2129.9,2.90695]
[1617407239656,2.90695,2130.0,2129.9,2.90695]
[1617407240859,2.90695,2130.0,2129.9,3.83405]
[1617407241061,2.90695,2130.0,2129.9,2.90695]
[1617407261588,2.90695,2130.0,2129.9,3.06158692]
[1617407262990,2.90695,2130.0,2129.9,2.90695]
[1617407263691,2.90695,2130.0,2129.9,3.06161542]
[1617407263991,2.90695,2130.0,2129.9,2.90695]
[1617407264395,2.90695,2130.0,2129.9,3.06160192]
[1617407264593,2.90695,2130.0,2129.9,4.01050192]
[1617407264794,2.90695,2130.0,2129.9,3.06160192]
[1617407268096,2.90695,2130.0,2129.9,2.90695]
[1617407270400,2.90695,2130.0,2129.9,3.06160205]
[1617407272900,2.90695,2130.0,2129.9,2.90695]
[1617407273602,2.90695,2130.0,2129.9,3.06159743]
[1617407285115,0.9313,2131.1,2129.9,3.06159743]
[1617407285316,0.9315,2131.6,2129.9,3.06159743]
[1617407285516,0.9315,2131.6,2129.9,7.87042843]
[1617407285716,0.9315,2131.6,2130.0,0.15484418]
[1617407286116,0.9315,2131.6,2130.8,2.90695]
[1617407286917,27.4841,2132.8,2130.8,2.90695]
[1617407288020,2.90695,2130.9,2130.8,2.90695]
[1617407290624,2.90695,2130.9,2130.1,4.81204121]
[1617407291025,2.90695,2130.9,2130.2,0.15472814]
[1617407291425,2.90695,2130.9,2130.2,4.82630307]
[1617407292025,2.90695,2130.3,2130.2,4.82630307]
[1617407292225,5.13665,2130.3,2130.2,4.82630307]
[1617407292627,5.13665,2130.3,2130.2,4.98104485]
[1617407293126,5.13665,2130.3,2130.2,0.15474178]
[1617407293525,5.13665,2130.3,2130.2,4.82772721]
[1617407293827,5.13665,2130.3,2130.2,4.98246792]
[1617407294527,4.19005,2130.3,2130.2,4.98246792]
[1617407295829,4.19005,2130.3,2130.1,7.73572096]
[1617407297829,2.90695,2130.3,2130.1,7.73572096]
[1617407298030,2.90695,2130.3,2130.2,4.98598982]
[1617407298434,2.90695,2130.3,2130.2,0.15472211]
[1617407299036,2.90695,2130.3,2130.2,4.98720831]
[1617407299338,2.90695,2130.3,2130.2,0.15472211]
[1617407301040,2.90695,2130.3,2130.2,4.9896261]
[1617407301840,2.90695,2130.3,2130.2,0.15472211]
[1617407302242,2.90695,2130.3,2130.2,4.99145493]
[1617407302940,2.90695,2130.3,2130.2,0.15472211]
[1617407305443,2.90695,2130.3,2130.2,6.06297505]
[1617407305644,74.8924,2131.0,2130.2,6.06297505]
[1617407306044,74.8924,2131.0,2130.4,4.83462274]
[1617407306244,74.8924,2131.0,2130.6,2.90695]
[1617407308250,2.90695,2130.7,2130.6,2.90695]
[1617407308450,11.0,2131.8,2130.6,2.90695]
[1617407308851,11.0,2131.8,2130.6,7.74184667]
[1617407309051,11.0,2131.8,2130.6,8.95664667]
[1617407309251,11.0,2131.8,2130.8,4.83255196]
[1617407309450,11.0,2131.8,2130.9,0.15460763]
[1617407309652,11.0,2131.8,2131.0,4.82929271]
[1617407310051,11.0,2131.8,2131.1,4.82917864]
[1617407310252,11.0,2131.8,2131.3,2.90695]
[1617407312355,2.90695,2131.4,2131.3,2.90695]
[1617407312853,11.0,2131.8,2131.3,2.90695]
[1617407313254,11.0,2131.8,2131.3,7.74457192]
[1617407314255,11.0,2131.8,2131.7,2.90695]
[1617407316257,13.90695,2131.8,2131.7,2.90695]
[1617407317458,13.90695,2131.8,2130.8,4.82984763]
[1617407317858,13.90695,2131.8,2130.9,0.15396296]
[1617407318459,11.0,2131.8,2131.4,2.90695]
[1617407320463,2.90695,2131.5,2131.4,2.90695]
[1617407326571,2.90695,2131.5,2131.4,3.85235]
[1617407326771,2.90695,2131.5,2131.4,2.90695]
[1617407337184,15.90695,2131.5,2131.4,2.90695]
[1617407341488,13.0,2131.5,2131.4,2.90695]
[1617407353105,10.6655,2131.5,2131.4,2.90695]
[1617407353306,9.737,2131.5,2131.4,2.90695]
[1617407353708,9.737,2131.5,2131.4,3.0606502]
[1617407355709,8.808,2131.5,2131.4,3.0606502]
[1617407358911,8.808,2131.5,2131.4,2.90695]
[1617407359513,8.808,2131.5,2131.4,3.06043434]
[1617407359714,10.4574,2131.5,2131.4,3.06043434]
[1617407359916,10.4574,2131.5,2131.4,2.90695]
[1617407360615,13.36435,2131.5,2131.4,2.90695]
[1617407361916,10.4574,2131.5,2131.4,2.90695]
[1617407362618,13.36435,2131.5,2131.4,2.90695]
[1617407364822,10.4574,2131.5,2131.4,2.90695]
[1617407367727,10.4574,2131.5,2131.4,3.06090396]
[1617407369542,8.808,2131.5,2131.4,3.06090396]
[1617407386551,8.808,2131.5,2131.4,4.59190396]
[1617407391960,8.808,2131.5,2131.4,3.06090396]
[1617407392161,8.808,2131.5,2131.4,8.94709869]
[1617407393263,8.808,2131.5,2131.4,3.06090396]
[1617407396868,6.9876,2131.5,2131.4,3.06090396]
[1617407397067,6.9081,2131.5,2131.4,3.06090396]
[1617407398770,6.8504,2131.5,2131.4,3.06090396]
[1617407403677,6.8504,2131.5,2131.4,8.94435721]
[1617407404177,6.8504,2131.5,2131.4,3.06090396]
[1617407404378,6.8504,2131.5,2131.4,8.94588105]
[1617407406182,6.8504,2131.5,2131.4,3.06090396]
[1617407407682,5.9652,2131.5,2131.4,3.06090396]
[1617407411988,5.9652,2131.5,2131.4,8.9480544]
[1617407412189,5.9077,2131.5,2131.4,8.9480544]
[1617407412989,5.9077,2131.5,2131.4,3.06090396]
[1617407413990,5.9077,2131.5,2131.4,7.88224074]
[1617407414692,5.9077,2131.5,2131.4,3.06090396]
[1617407417100,5.9077,2131.5,2131.4,8.96638665]
[1617407421806,5.4354,2131.5,2131.4,8.96638665]
[1617407423706,5.4354,2131.5,2131.4,3.06090396]
[1617407425708,5.4354,2131.5,2131.4,8.97402068]
[1617407426108,5.4354,2131.5,2131.4,3.06090396]
[1617407433920,5.2154,2131.5,2131.4,3.06090396]
[1617407436024,5.2154,2131.5,2131.4,9.00699273]
[1617407437127,8.12235,2131.5,2131.4,9.00699273]
[1617407437828,8.12235,2131.5,2131.4,3.06090396]
[1617407438730,5.2154,2131.5,2131.4,3.06090396]
[1617407439131,5.2154,2131.5,2131.4,9.00119824]
[1617407440234,5.2154,2131.5,2131.4,3.06090396]
[1617407440634,5.2154,2131.5,2131.4,9.00155106]
[1617407441134,8.12235,2131.5,2131.4,9.00155106]
[1617407442839,8.12235,2131.5,2131.4,3.06090396]
[1617407443939,8.12235,2131.5,2131.4,7.92531313]
[1617407445140,8.12235,2131.5,2131.4,7.77135917]
[1617407446443,8.12235,2131.5,2131.4,4.86440917]
[1617407446844,9.53325,2131.5,2131.3,4.86822955]
[1617407447049,9.53325,2131.5,2131.2,4.87085086]
[1617407447445,9.53325,2131.5,2131.1,4.87172668]
[1617407447845,9.53325,2131.5,2130.8,4.86739186]
[1617407449244,2.90695,2130.9,2130.8,4.86739186]
[1617407449445,4.87985,2130.9,2130.8,4.86739186]
[1617407449946,4.87985,2130.9,2130.7,4.86739106]
[1617407451749,4.87985,2130.9,2130.6,7.7770314]
[1617407451949,4.87985,2130.9,2130.7,4.8694991]
[1617407452352,4.87985,2130.9,2130.6,7.77608063]
[1617407453756,4.87985,2130.9,2130.6,4.86913063]
[1617407454562,4.87985,2130.9,2130.4,4.87286691]
[1617407455159,2.90695,2130.5,2130.4,4.87286691]
[1617407455359,2.90695,2130.5,2130.3,4.87435168]
[1617407456661,2.90695,2130.5,2130.4,4.87485232]
[1617407457162,2.90695,2130.5,2130.3,4.87565627]
[1617407457763,2.90695,2130.5,2130.2,4.87823117]
[1617407458164,2.90695,2130.5,2130.1,7.78488387]
[1617407458563,2.90695,2130.5,2130.2,4.8772239]
[1617407458964,2.90695,2130.5,2130.1,2.90695]
[1617407459163,2.90695,2130.2,2130.1,2.90695]
[1617407463466,1.7083,2130.4,2130.1,2.90695]
[1617407463667,60.9479,2131.2,2130.1,2.90695]
[1617407464568,60.9479,2131.2,2130.1,9.54573371]
[1617407464768,60.9479,2131.2,2130.2,0.1536072]
[1617407465368,60.9479,2131.2,2131.0,2.90695]
[1617407465770,5.2154,2131.5,2131.0,2.90695]
[1617407466970,5.2154,2131.5,2130.1,6.638545]
[1617407467370,5.2154,2131.5,2130.7,2.90695]
[1617407468676,5.2154,2131.5,2130.1,6.63967112]
[1617407469278,5.2154,2131.5,2130.5,2.90695]
[1617407471281,2.90695,2130.6,2130.5,2.90695]
[1617407480692,4.45185,2130.6,2129.4,7.44055688]
[1617407480892,4.45185,2130.6,2129.3,0.9398]
[1617407481092,4.45185,2130.6,2129.5,56.6429]
[1617407481295,1.5449,2130.6,2130.2,2.90695]
[1617407481794,1.5449,2130.6,2129.5,56.6429]
[1617407484401,1.5449,2130.6,2128.9,4.87240102]
[1617407484799,1.5449,2130.6,2129.0,0.15365016]
[1617407485201,53.7847,2130.2,2129.0,0.15365016]
[1617407485399,53.7847,2130.2,2129.7,2.90695]
[1617407487505,4.17055,2129.8,2129.7,2.90695]
[1617407488604,4.17055,2129.8,2128.9,4.87615653]
[1617407489205,4.17055,2129.8,2129.0,0.15369887]
[1617407489406,1.2636,2129.8,2129.5,2.90695]
[1617407490005,53.7847,2130.2,2129.5,2.90695]
[1617407491411,2.90695,2129.6,2129.5,2.90695]
[1617407507930,2.90695,2129.6,2129.5,3.05950188]
[1617407513436,1.6181,2130.1,2129.5,3.05950188]
[1617407513635,53.7847,2130.2,2130.0,2.90695]
[1617407515635,2.90695,2130.4,2130.0,2.90695]
[1617407517636,2.90695,2130.4,2130.3,2.90695]
[1617407525350,2.90695,2130.4,2129.6,4.89246581]
[1617407525749,1.4117,2130.6,2130.2,2.90695]
[1617407526449,89.0129,2131.4,2130.2,2.90695]
[1617407526750,76.0865,2131.4,2130.2,2.90695]
[1617407527351,5.2154,2131.5,2130.2,2.90695]
[1617407527751,2.90695,2130.3,2130.2,2.90695]
[1617407537460,2.90695,2130.3,2130.2,3.06149875]
[1617407537761,2.90695,2130.3,2130.2,7.83830581]
[1617407538160,2.90695,2130.3,2130.2,3.06145266]
[1617407538860,2.90695,2130.3,2130.2,0.15450266]
[1617407539060,2.90695,2130.3,2130.1,6.02645498]
[1617407539264,2.90695,2130.3,2130.2,4.93219358]
[1617407539866,2.90695,2130.3,2130.2,7.83914358]
[1617407540866,2.90695,2130.3,2130.2,2.90695]
[1617407541368,2.90695,2130.3,2130.2,7.84237085]
[1617407541866,2.90695,2130.3,2130.2,2.90695]
[1617407543568,2.90695,2130.3,2130.1,4.93605884]
[1617407546574,2.90695,2130.3,2130.2,4.94176129]
[1617407550376,2.90695,2130.3,2130.1,4.94391199]
[1617407552782,2.90695,2130.3,2130.2,4.94516178]
[1617407553682,2.90695,2130.3,2130.2,6.91066178]
[1617407553882,2.90695,2130.3,2130.2,1.9655]
[1617407555285,2.90695,2130.3,2130.2,6.91046805]
[1617407557988,2.90695,2130.3,2130.2,1.9655]
[1617407558188,2.90695,2130.3,2130.1,6.04191239]
[1617407558388,2.90695,2130.3,2130.2,4.93996382]
[1617407560790,2.90695,2130.3,2130.2,6.03123052]
[1617407561388,2.90695,2130.3,2130.2,7.50237254]
[1617407562290,2.90695,2130.3,2130.2,7.34813052]
[1617407562490,2.90695,2130.3,2130.2,7.50239867]
[1617407562891,2.90695,2130.3,2130.2,7.34813052]
[1617407563092,2.90695,2130.3,2130.2,7.50268244]
[1617407564991,2.90695,2130.3,2130.2,6.18578244]
[1617407565195,2.90695,2130.3,2130.1,6.02376528]
[1617407568799,2.90695,2130.3,2130.2,4.92619397]
[1617407569601,2.90695,2130.3,2130.0,8.92785375]
[1617407570002,2.90695,2130.3,2130.2,4.93100378]
[1617407570601,2.90695,2130.3,2130.0,8.92785375]
[1617407570901,2.90695,2130.3,2130.1,6.03071886]
[1617407571304,2.90695,2130.3,2130.1,6.18537641]
[1617407571501,2.90695,2130.3,2130.2,0.15458256]
[1617407571703,2.90695,2130.3,2130.2,6.18380593]
[1617407572203,2.90695,2130.3,2130.2,6.02922337]
[1617407572804,2.90695,2130.3,2130.1,6.03830255]
[1617407574008,2.90695,2130.3,2130.2,4.95102268]
[1617407584823,2.90695,2130.3,2130.1,4.95252099]
[1617407585023,4.53905,2130.3,2130.1,4.95252099]
[1617407585825,62.84175,2130.3,2130.0,4.95100263]
[1617407586925,62.84175,2130.3,2129.3,7.1516652]
[1617407586926,62.84175,2130.3,2129.9,4.95128231]
[1617407587525,62.84175,2130.3,2129.8,4.951606]
[1617407588128,2.90695,2129.9,2129.8,4.951606]
[1617407588727,2.90695,2129.9,2129.6,6.05172039]
[1617407589128,2.90695,2129.9,2129.7,6.05176485]
[1617407590129,2.90695,2129.9,2129.8,2.90695]
[1617407591232,2.90695,2129.9,2129.8,7.85614308]
[1617407593934,2.90695,2129.9,2129.8,2.90695]
[1617407599140,2.90695,2129.9,2129.8,7.85596129]
[1617407601743,2.90695,2129.9,2129.8,2.90695]
[1617407603951,2.90695,2129.9,2129.7,4.94742051]
[1617407604149,2.90695,2129.9,2129.6,4.93820892]
[1617407604551,2.90695,2129.9,2129.4,4.93913882]
[1617407604748,2.90695,2129.9,2129.3,4.93893711]
[1617407605151,2.90695,2129.9,2129.2,4.93767209]
[1617407605550,2.90695,2129.9,2129.3,4.93784539]
[1617407605952,2.90695,2129.9,2129.6,4.93502776]
[1617407606351,2.90695,2129.9,2129.3,1.44569771]
[1617407606352,2.90695,2129.9,2129.8,2.90695]
[1617407611857,2.90695,2129.9,2129.5,4.94539818]
[1617407612058,4.24195,2129.9,2129.5,4.94539818]
[1617407612457,2.90695,2129.6,2129.5,4.94539818]
[1617407613058,2.90695,2129.6,2129.4,7.85394648]
[1617407613256,2.90695,2129.6,2129.5,4.94694]
[1617407613658,2.90695,2129.6,2129.4,7.8510763]
[1617407614758,2.90695,2129.6,2129.4,2.90695]
[1617407615257,2.90695,2129.6,2129.3,4.9441726]
[1617407615859,2.90695,2129.6,2129.1,4.9443627]
[1617407616461,2.90695,2129.2,2129.1,4.9443627]
[1617407616661,4.32525,2129.2,2129.1,4.9443627]
[1617407617762,4.32525,2129.2,2129.0,4.94480486]
[1617407618363,4.32525,2129.2,2128.9,7.851824]
[1617407620065,4.32525,2129.2,2129.0,4.94519498]
[1617407622468,4.32525,2129.2,2128.9,7.85228987]
[1617407625571,4.32525,2129.2,2128.9,2.90695]
[1617407629776,4.32525,2129.2,2128.4,4.93831954]
[1617407630376,1.4183,2129.2,2128.6,2.90695]
[1617407630577,65.7259,2129.8,2128.6,2.90695]
[1617407631779,65.7259,2129.8,2128.4,4.93831954]
[1617407631979,95.7259,2129.8,2128.4,4.93831954]
[1617407632379,2.90695,2128.5,2128.4,4.93831954]
[1617407632780,4.89765,2128.5,2128.3,7.84585404]
[1617407633780,4.89765,2128.5,2128.3,2.90695]
[1617407634280,4.89765,2128.5,2127.7,4.94017651]
[1617407634480,2.90695,2127.8,2127.7,4.94017651]
[1617407634680,4.70935,2127.8,2127.7,4.94017651]
[1617407635183,4.70935,2127.8,2127.5,7.84773522]
[1617407635584,4.70935,2127.8,2127.5,2.90695]
[1617407639486,4.70935,2127.8,2126.0,4.91799151]
[1617407639686,4.70935,2127.8,2125.9,4.9181249]
[1617407640486,1.8024,2127.8,2126.5,2.90695]
[1617407640686,67.2405,2127.9,2126.5,2.90695]
[1617407642089,67.2405,2127.9,2126.5,4.62685]
[1617407642589,30.0,2129.1,2126.5,1.7199]
[1617407642991,59.3109,2128.7,2126.5,1.7199]
[1617407644491,59.3109,2128.7,2127.5,2.90695]
[1617407645593,59.3109,2128.7,2126.1,4.91657338]
[1617407645794,89.3109,2128.7,2126.0,7.48765096]
[1617407646295,89.3109,2128.7,2126.0,2.571]
[1617407646494,89.3109,2128.7,2127.3,2.90695]
[1617407648496,2.90695,2127.4,2127.3,2.90695]
[1617407648697,2.90695,2127.4,2126.2,1.2744]
[1617407648899,2.90695,2127.4,2126.0,2.571]
[1617407650701,2.90695,2127.8,2127.3,2.90695]
[1617407650899,12.795,2129.6,2127.3,4.80755]
[1617407652705,12.795,2129.6,2128.3,2.90695]
[1617407652906,0.9417,2129.9,2128.3,2.90695]
[1617407654107,30.0,2130.3,2128.1,1.3774]
[1617407654307,31.2587,2130.3,2128.1,1.3774]
[1617407654507,31.2587,2130.3,2127.3,1.9006]
[1617407654708,31.2587,2130.3,2128.0,2.90695]
[1617407654909,31.2587,2130.3,2128.7,54.7225]
[1617407655410,1.2587,2130.3,2128.7,54.7225]
[1617407655612,30.0,2130.2,2128.7,54.7225]
[1617407656614,2.90695,2128.8,2128.7,54.7225]
[1617407656814,3.86035,2128.8,2127.7,2.90695]
[1617407657216,2.90695,2128.8,2127.7,2.90695]
[1617407658615,2.90695,2127.8,2127.7,2.90695]
[1617407660521,1.5161,2128.9,2127.7,2.90695]
[1617407660829,62.3655,2129.1,2126.6,3.5255]
[1617407660830,2.90695,2128.5,2128.4,4.24925]
[1617407661621,2.90695,2128.5,2128.4,1.3423]
[1617407661921,13.422,2129.8,2127.8,1.7028]
[1617407662522,13.422,2129.8,2127.3,1.4785]
[1617407662723,13.422,2129.8,2128.0,2.90695]
[1617407662924,13.422,2129.8,2126.8,0.9361]
[1617407663125,15.2238,2129.8,2126.6,2.2231]
[1617407663325,15.2238,2129.8,2126.6,3.8396]
[1617407664336,15.2238,2129.8,2126.6,4.7762]
[1617407664731,15.2238,2129.8,2128.4,2.90695]
[1617407664933,0.9325,2129.9,2128.4,2.90695]
[1617407665131,60.8049,2130.0,2128.4,2.90695]
[1617407665432,60.8049,2130.0,2127.4,1.4402]
[1617407665632,60.8049,2130.0,2126.8,0.9521]
[1617407665633,62.1451,2130.0,2126.8,0.9521]
[1617407665835,62.1451,2130.0,2126.6,4.7762]
[1617407666635,62.1451,2130.0,2128.2,2.90695]
[1617407668835,2.90695,2128.3,2128.2,2.90695]
[1617407670941,2.90695,2128.3,2126.6,2.2052]
[1617407671139,2.90695,2128.3,2126.6,0.9366]
[1617407671540,2.90695,2128.3,2126.6,3.5076]
[1617407672741,1.7192,2128.6,2127.8,2.90695]
[1617407674745,2.90695,2127.9,2127.8,2.90695]
[1617407676049,1.7192,2128.6,2127.8,2.90695]
[1617407676247,0.9477,2129.2,2127.8,2.90695]
[1617407676848,0.9477,2129.2,2128.4,2.90695]
[1617407677050,0.9266,2129.9,2128.4,2.90695]
[1617407677252,1.0847432,2133.1,2128.4,2.90695]
[1617407677647,0.86788856,2132.9,2128.4,2.90695]
[1617407678247,0.65093422,2132.7,2128.4,2.90695]
[1617407678747,2.90695,2128.5,2128.4,2.90695]
[1617407679747,1.837,2129.5,2128.4,2.90695]
[1617407679948,1.3402,2130.0,2128.4,2.90695]
[1617407680149,12.4691,2130.4,2128.4,4.36415]
[1617407680548,33.501,2131.1,2128.4,4.36415]
[1617407680748,2.571,2131.1,2129.0,2.90695]
[1617407681150,2.571,2131.1,2129.0,4.65845]
[1617407682751,2.571,2131.1,2129.5,2.90695]
[1617407684752,2.90695,2129.6,2129.5,2.90695]
[1617407687958,2.90695,2129.6,2128.4,1.4572]
[1617407688158,2.90695,2129.6,2128.1,0.937]
[1617407688658,2.90695,2129.6,2127.6,7.4823404]
[1617407688861,1.9146,2130.0,2128.8,2.90695]
[1617407690959,2.90695,2128.9,2128.8,2.90695]
[1617407693361,3.86035,2128.9,2128.8,2.90695]
[1617407693560,2.90695,2128.9,2128.8,2.90695]
[1617407695364,1.7258,2129.5,2128.8,2.90695]
[1617407695763,1.9146,2130.0,2129.1,54.6254]
[1617407695964,2.516,2130.9,2128.8,2.90695]
[1617407696367,30.0,2131.6,2128.8,2.90695]
[1617407696969,2.90695,2128.9,2128.8,2.90695]
[1617407699273,4.40595,2128.9,2128.8,2.90695]
[1617407702773,2.90695,2128.9,2128.8,2.90695]
[1617407707882,2.90695,2128.9,2127.5,8.44179662]
[1617407708080,2.90695,2128.9,2127.5,3.5168]
[1617407708882,2.90695,2128.9,2127.6,0.1550102]
[1617407709083,1.2963,2129.0,2128.5,2.90695]
[1617407709483,1.304,2129.5,2128.5,2.90695]
[1617407709682,0.9456,2129.9,2128.5,2.90695]
[1617407709883,1.7305,2130.0,2128.5,2.90695]
[1617407710082,0.65289952,2132.1,2128.5,2.90695]
[1617407710083,13.43201733,2131.4,2128.5,2.90695]
[1617407710284,60.7502,2130.3,2128.5,2.90695]
[1617407710981,2.90695,2128.6,2128.5,2.90695]
[1617407711183,4.20545,2128.6,2128.5,2.90695]
[1617407711788,4.20545,2128.6,2127.5,2.571]
[1617407712187,4.20545,2128.6,2127.6,0.15520735]
[1617407712987,1.2985,2128.6,2128.0,2.90695]
[1617407715088,2.90695,2128.1,2128.0,2.90695]
[1617407715488,3.85065,2128.1,2127.5,2.571]
[1617407715689,3.85065,2128.1,2127.7,57.7743]
[1617407715891,2.90695,2128.1,2127.7,57.7743]
[1617407717191,2.90695,2127.8,2127.7,57.7743]
[1617407717393,4.40405,2127.8,2127.7,57.7743]
[1617407718994,4.40405,2127.8,2127.4,2.90695]
[1617407719896,4.40405,2127.8,2127.4,3.83675]
[1617407720094,4.40405,2127.8,2127.4,2.90695]
[1617407720294,2.90695,2127.8,2127.4,2.90695]
[1617407721095,2.90695,2127.8,2127.7,2.90695]
[1617407724198,2.90695,2127.8,2127.7,4.56915]
[1617407725199,2.90695,2128.3,2127.7,4.56915]
[1617407725900,2.90695,2128.3,2127.7,1.6622]
[1617407726100,2.90695,2128.3,2127.1,4.93178148]
[1617407726303,2.90695,2128.3,2127.0,4.93197638]
[1617407726701,3.84445,2128.3,2126.9,8.43683316]
[1617407726902,2.90695,2128.3,2126.9,8.43683316]
[1617407727101,1.2841,2128.6,2126.9,8.43683316]
[1617407727102,1.2841,2128.6,2127.5,2.90695]
[1617407727504,53.4313,2129.1,2127.5,2.90695]
[1617407729305,2.90695,2127.6,2127.5,2.90695]
[1617407731706,53.4313,2129.1,2127.5,2.90695]
[1617407731906,53.4313,2129.1,2127.5,4.48855]
[1617407733206,53.4313,2129.1,2127.8,2.90695]
[1617407735308,2.90695,2128.0,2127.8,2.90695]
[1617407737613,12.5815,2130.2,2127.8,2.90695]
[1617407737816,12.5815,2130.2,2129.2,53.6528]
[1617407738014,30.05440612,2131.0,2129.2,53.6528]
[1617407738415,30.0,2131.0,2129.2,53.6528]
[1617407739318,2.90695,2129.3,2129.2,53.6528]
[1617407740823,2.90695,2129.3,2128.8,2.90695]
[1617407741223,2.90695,2128.9,2128.8,2.90695]
[1617407749444,4.60885,2128.9,2128.5,2.90695]
[1617407751448,2.90695,2128.6,2128.5,2.90695]
[1617407753150,2.90695,2128.6,2128.1,4.9324236]
[1617407753350,1.7019,2128.9,2128.2,3.0620066]
[1617407753751,1.7019,2128.9,2128.2,2.90695]
[1617407754552,1.3776,2129.4,2128.2,2.90695]
[1617407754953,74.3657,2129.7,2128.2,2.90695]
[1617407755354,2.90695,2128.3,2128.2,2.90695]
[1617407765672,2.90695,2128.3,2128.2,3.84285]
[1617407768271,2.90695,2128.3,2128.2,3.99783829]
[1617407769472,2.90695,2128.3,2128.2,3.84285]
[1617407770473,2.90695,2128.3,2128.2,3.99770845]
[1617407772575,74.3657,2129.7,2128.2,3.99770845]
[1617407772975,74.3657,2129.7,2128.2,3.84285]
[1617407773175,74.3657,2129.7,2128.2,8.7773585]
[1617407773375,74.3657,2129.7,2128.3,0.15484601]
[1617407773576,74.3657,2129.7,2128.9,2.90695]
[1617407775581,2.90695,2129.0,2128.5,4.93927395]
[1617407775981,2.90695,2129.0,2128.4,4.93944917]
[1617407777481,1.7033,2129.1,2128.6,2.90695]
[1617407778483,1.7033,2129.1,2128.3,4.93956665]
[1617407779583,2.90695,2128.4,2128.3,7.84651665]
[1617407781087,2.90695,2128.4,2128.3,8.001557]
[1617407782290,2.90695,2128.4,2128.3,3.06199035]
[1617407782891,2.90695,2128.4,2128.3,8.00148898]
[1617407787197,2.90695,2128.4,2128.3,9.87178898]
[1617407787596,2.571,2130.6,2128.3,9.87178898]
[1617407787998,2.571,2130.6,2128.3,10.96705802]
[1617407788199,2.571,2130.6,2128.4,6.18943085]
[1617407788398,2.571,2130.6,2128.7,4.93712339]
[1617407788600,28.3623,2131.4,2128.8,4.93703732]
[1617407788801,28.3623,2131.4,2128.8,6.40163732]
[1617407789500,28.3623,2131.4,2128.9,3.06210096]
[1617407790201,28.3623,2131.4,2128.9,2.90695]
[1617407791001,28.3623,2131.4,2129.0,0.15513601]
[1617407791502,2.90695,2129.1,2129.0,5.09172083]
[1617407791903,2.90695,2129.1,2129.0,0.15513601]
[1617407792103,2.90695,2129.1,2128.9,7.84370912]
[1617407793103,2.90695,2129.1,2129.0,0.15584289]
[1617407793503,2.90695,2129.1,2129.0,2.03194289]
[1617407794303,58.1755,2130.8,2129.0,2.03194289]
[1617407794704,58.1755,2130.8,2129.1,0.15525337]
[1617407795305,0.9266,2130.9,2129.1,0.15525337]
[1617407795705,0.9266,2130.9,2129.4,2.90695]
[1617407796909,0.9266,2130.9,2129.4,3.83955]
[1617407797710,2.90695,2129.5,2129.4,3.83955]
[1617407803424,2.90695,2129.5,2129.4,3.99475473]
[1617407804123,2.90695,2129.5,2129.4,3.83955]
[1617407804524,2.90695,2129.5,2129.4,3.99457396]
[1617407804724,2.90695,2129.5,2129.4,3.83955]
[1617407805327,2.90695,2129.5,2129.4,2.90695]
[1617407812529,2.90695,2129.5,2128.7,0.9454]
[1617407813129,2.90695,2129.5,2128.8,0.15463242]
[1617407813729,1.8238,2129.7,2129.1,2.90695]
[1617407814628,1.8238,2129.7,2128.5,4.92697272]
[1617407815030,1.8238,2129.7,2128.6,0.15457983]
[1617407815730,1.8238,2129.7,2129.0,2.90695]
[1617407816631,2.0016,2130.4,2129.0,2.90695]
[1617407816830,0.9323,2130.9,2129.0,2.90695]
[1617407817030,56.9503,2131.7,2129.0,2.90695]
[1617407817834,2.90695,2129.1,2129.0,2.90695]
[1617407818434,1.3473,2130.8,2129.0,2.90695]
[1617407818634,1.6281,2131.3,2129.0,4.55705]
[1617407818836,1.6281,2131.3,2129.0,4.71146413]
[1617407819035,1.6281,2131.3,2129.0,4.55705]
[1617407819636,1.6281,2131.3,2129.1,0.15437432]
[1617407819836,1.6281,2131.3,2129.5,2.90695]
[1617407821037,56.9503,2131.7,2129.5,2.90695]
[1617407821438,13.1064,2131.4,2130.3,53.3624]
[1617407821639,56.9503,2131.7,2130.3,53.3624]
[1617407821841,2.90695,2130.4,2130.3,53.3624]
[1617407825546,2.90695,2130.4,2129.5,2.90695]
[1617407825748,2.90695,2129.6,2129.5,2.90695]
[1617407834153,2.90695,2129.6,2129.5,3.0618625]
[1617407838662,1.98775,2129.6,2129.5,3.0618625]
[1617407838863,1.98775,2129.6,2129.5,9.64452905]
[1617407841871,1.07775,2129.6,2129.5,9.64452905]
[1617407845378,1.07775,2129.6,2129.5,4.7123625]
[1617407845576,1.07775,2129.6,2129.5,3.0618625]
[1617407846476,5e-05,2129.6,2129.5,3.0618625]
[1617407846675,5e-05,2129.6,2129.5,7.99408932]
[1617407847777,5e-05,2129.6,2129.5,3.0618625]
[1617407847980,2.90695,2130.5,2129.5,3.0618625]
[1617407848377,4.60865,2130.5,2129.8,4.93156375]
[1617407849077,4.60865,2130.5,2129.9,0.15462944]
[1617407849879,4.60865,2130.5,2129.7,4.93177168]
[1617407849880,4.60865,2130.5,2129.8,0.15464527]
[1617407850080,1.7017,2130.5,2130.2,2.90695]
[1617407851981,2.90695,2130.3,2130.2,2.90695]
[1617407855486,5.2154,2131.5,2130.2,3.06154355]
[1617407855684,5.2154,2131.5,2130.2,4.92164355]
[1617407855885,5.2154,2131.5,2130.3,0.15454347]
[1617407856085,5.2154,2131.5,2131.4,2.90695]
[1617407857385,5.2154,2131.5,2131.4,3.85925]
[1617407861789,5.1208,2131.5,2131.4,3.85925]
[1617407862591,3.098,2131.5,2131.4,3.85925]
[1617407863292,13.90695,2131.8,2131.4,3.85925]